Cogmind - Beta 13 @@@ ROGUE MODE // 2024.05.23 @ 14:22:45 Player: Barbarossa Result: Destroyed by H-66 Slayer with Gauss Rifle Performance ------------- Evolutions (4) 2000 Regions Visited (6) 1200 Robots Destroyed (70) 350 Value Destroyed (2153) 2153 Prototype IDs (5) 100 Alien Tech Used (0) 0 Bonus (500) 500 TOTAL SCORE: 6303 Bonus ------- Entered DSFs 500 Cogmind --------- Core Integrity 0/850 Matter 290/300 Energy 78/100 System Corruption 5% Temperature Cool (2) Movement Flying (32) Location -6/Factory Parts ------- > --- POWER (2) -------- (None) > --- PROPULSION (5) --- VTOL Module VTOL Module > --- UTILITY (6) ------ Visual Processing Unit Improved Signal Interpreter Improved Signal Interpreter Improved Melee Analysis Suite Advanced Melee Analysis Suite Improved System Shield > --- WEAPON (2) ------- Spear > --- INVENTORY (5) ---- Light Fission Core Power Amplifier Improved Cooling System Improved System Restoration Module Great Axe Peak State ------------ > --- POWER ------------ Light Angular Momentum Engine Light Angular Momentum Engine > --- PROPULSION ------- Xenon Bombardment Thruster Xenon Bombardment Thruster Xenon Bombardment Thruster Xenon Bombardment Thruster Xenon Bombardment Thruster > --- UTILITY ---------- Power Amplifier Improved Heat Sink Improved Sensor Array Improved Signal Interpreter Improved System Restoration Module > --- WEAPON ----------- Small Laser Small Laser > --- INVENTORY -------- Light Angular Momentum Engine Light Angular Momentum Engine Light Angular Momentum Engine Light Angular Momentum Engine [Rating: 53] Favorites ----------- Power Light Ion Engine Engine Light Ion Engine Power Core Light Fission Core Propulsion Compact Wheel Leg Aluminum Leg Wheel Compact Wheel Hover Unit Gravmag System Flight Unit Xenon Bombardment Thruster Utility Improved Heat Sink Device Improved Heat Sink Storage Small Storage Unit Processor Improved Signal Interpreter Hackware Improved System Shield Protection Hardened Medium Armor Plating Weapon Small Laser Energy Gun Small Laser Energy Cannon Advanced Beam Cannon Ballistic Gun Assault Rifle Impact Weapon Shock Maul Slashing Weapon Carbide Saw Piercing Weapon Spear Build | -11 -10 -9 -8 -7 -7 -6 ------- Run | Yrd Mat Mat Mat Fac DSF Fac Slots Evolved 8 | . . 2 2 2 . 2 Power 1 | . . . . . . 1 Propulsion 3 | . . 2 . 1 . . Utility 4 | . . . 2 1 . 1 Weapon . | . . . . . . . Parts Attached 106 | . 13 10 27 . 12 44 Power 18 | . 3 1 2 . 1 11 Engine 15 | . 3 1 2 . 1 8 Core 3 | . . . . . . 3 Reactor . | . . . . . . . Propulsion 40 | . 4 3 11 . 11 11 Treads . | . . . . . . . Leg . | . . . . . . . Wheel 17 | . 4 3 10 . . . Hover 3 | . . . . . . 3 Flight 20 | . . . 1 . 11 8 Utility 27 | . 2 2 6 . . 17 Device 17 | . 2 1 5 . . 9 Storage 1 | . . . . . . 1 Processor 6 | . . 1 1 . . 4 Hackware 2 | . . . . . . 2 Protection 1 | . . . . . . 1 Artifact . | . . . . . . . Weapon 21 | . 4 4 8 . . 5 Energy Gun 10 | . 2 3 4 . . 1 Energy Cannon 5 | . 1 . 4 . . . Ballistic Gun 2 | . 1 1 . . . . Ballistic Cannon . | . . . . . . . Launcher . | . . . . . . . Special Weapon . | . . . . . . . Impact Weapon 1 | . . . . . . 1 Slashing Weapon 2 | . . . . . . 2 Piercing Weapon 1 | . . . . . . 1 Special Melee Weapon . | . . . . . . . Unidentified Prototypes 5 | . . 1 3 . . 1 Parts Lost 41 | . 4 3 9 . 8 17 Power 5 | . 1 . . . 1 3 Propulsion 24 | . 1 . 6 . 6 11 Utility 4 | . . 1 1 . . 2 Weapon 8 | . 2 2 2 . 1 1 Highest Loss Streak 7 | . 3 1 4 . 7 4 To Critical Strikes . | . . . . . . . Average Slot Usage (%) 76 | . 84 79 90 . 65 62 Engine 8 | . 13 11 9 . 5 4 Leg 3 | . 16 . . . . . Wheel 13 | . 11 27 31 . 6 . Flight 5 | . . . . . 17 13 Device 11 | . 6 10 17 . 17 10 Storage 6 | . 14 11 5 . . . Processor 6 | . . . 9 . 7 11 Hackware 1 | . . . . . . 5 Energy Gun 8 | . 16 14 7 . 7 2 Energy Cannon 1 | . . . 7 . 3 . Ballistic Gun 2 | . 5 5 2 . . . Piercing Weapon 1 | . . . . . . 3 Naked Turns . | . . . . . . . Heaviest Build 30 | 13 13 18 22 11 11 30 Greatest Support 64 | 20 32 64 64 36 36 30 Greatest Overweight (x) 2 | . 1 . 1 . 2 1 Average Overweight (x) . | . . . . . . . Largest Inventory Capacity 10 | . 8 8 8 5 5 10 Average Capacity 6 | . 8 8 6 5 5 5 Most Carried 8 | . 8 8 8 5 5 5 Average Carried 6 | . 6 7 6 5 4 4 Final Capacity 8 | 8 8 8 5 5 5 5 Final Carried 8 | 6 8 8 5 5 5 5 Class Distribution -------------------- 53% | Mutant 27% | Scavenger-Mutant 9% | Scavenger-Sprinter 5% | Hacker-Gladiator Dominant Class ---------------- Mutant | -10/Materials Mutant | -9/Materials Scavenger-Mutant | -8/Materials Scavenger-Mutant | -7/Factory Scavenger-Mutant | -7/DSF Mutant | -6/Factory Resources | -11 -10 -9 -8 -7 -7 -6 ----------- Run | Yrd Mat Mat Mat Fac DSF Fac Matter Collected 1248 | 195 174 102 315 . 10 452 Remotely . | . . . . . . . Salvage Created 2952 | . 712 580 782 . 40 838 Parts 149 | . 34 32 38 . 5 40 Haulers Intercepted 2 | . . 1 1 . . . Recyclers Shooed 4 | . 1 1 1 . . 1 Parts Field Recycled . | . . . . . . . Retrieved Matter . | . . . . . . . Parts Self-Destructed . | . . . . . . . Prevented . | . . . . . . . Kills | -11 -10 -9 -8 -7 -7 -6 ------- Run | Yrd Mat Mat Mat Fac DSF Fac Combat Hostiles Destroyed 46 | . 10 8 10 . 2 16 Melee 16 | . . . . . . 16 Guns 21 | . 10 8 2 . 1 . Cannons 7 | . . . 6 . 1 . Classes Destroyed 15 | . 5 4 2 . 1 3 Worker 11 | . 6 1 3 . . 1 Hauler 2 | . . 1 1 . . . Recycler 3 | . 1 1 1 . . . Mechanic 2 | . 1 1 . . . . Operator 2 | . 1 . . . . 1 Watcher 4 | . . 1 2 . . 1 Swarmer 5 | . . . . . . 5 Cutter 2 | . . . . . 2 . Grunt 28 | . 10 5 7 . . 6 Brawler 2 | . . 1 . . . 1 Duelist 1 | . . . 1 . . . Sentry 2 | . . 2 . . . . Specialist 2 | . . . 2 . . . Hunter 3 | . . . . . . 3 Programmer 1 | . . . . . . 1 Best Kill Streak 5 | . 5 4 5 . 1 4 Combat Bots Only 4 | . 2 2 3 . 1 4 Max Kills in Single Turn 2 | . 1 1 2 . 1 1 Gunslinging . | . . . . . . . Exploded . | . . . . . . . Melee 1 | . . . . . . 1 Uniques/NPCs Destroyed . | . . . . . . . Combat | -11 -10 -9 -8 -7 -7 -6 -------- Run | Yrd Mat Mat Mat Fac DSF Fac Hostile Shots Fired 385 | . 79 59 70 . 26 151 Missed 132 | . 17 19 33 . 7 56 Damage Taken 4277 | . 790 520 711 . 502 1754 Core 1488 | . 149 180 150 . 143 866 Absorbed by Shields . | . . . . . . . Core Remaining (%) 69 | 100 40 55 72 . 79 . Volleys Fired 206 | . 89 59 43 . 10 5 Largest 2 | . 2 2 2 . 2 2 Hottest 136 | . 90 96 136 . 108 80 Shots Fired 339 | . 131 99 86 . 14 9 Gun 284 | . 131 99 35 . 10 9 Cannon 55 | . . . 51 . 4 . Launcher . | . . . . . . . Special . | . . . . . . . Kinetic 50 | . 30 20 . . . . Thermal 269 | . 101 79 66 . 14 9 Explosive . | . . . . . . . Electromagnetic 20 | . . . 20 . . . Robot Hit Streak 11 | . 11 9 10 . 3 1 Robot Miss Streak 4 | . 4 4 4 . 2 3 Penetration Max . | . . . . . . . Secondary Targets 1 | . . 1 . . . . Max Gunslinging Chain 1 | . . 1 . . . . Shots Hit Robots 272 | . 87 67 50 . 7 61 Core Hits 124 | . 38 26 25 . 3 32 Critical Kills 1 | . . . 1 . . . Critical Parts Destroyed . | . . . . . . . Critical Strikes 15 | . 1 1 1 . . 12 Burn 2 | . 1 1 . . . . Meltdown 1 | . . . 1 . . . Sever 8 | . . . . . . 8 Impale 4 | . . . . . . 4 Melee Attacks 70 | . . . . . . 70 Impact . | . . . . . . . Slashing 32 | . . . . . . 32 Piercing 38 | . . . . . . 38 Sneak Attacks 3 | . . . . . . 3 Combat Hostiles . | . . . . . . . Follow-up Attacks 6 | . . . . . . 6 Damage Inflicted 4983 | . 1034 826 1099 . 98 1926 Guns 2368 | . 1034 826 416 . 58 34 Cannons 655 | . . . 615 . 40 . Explosions 68 | . . . 68 . . . Melee 1892 | . . . . . . 1892 Ramming . | . . . . . . . Kinetic 356 | . 260 96 . . . . Thermal 2479 | . 774 730 843 . 98 34 Explosive . | . . . . . . . Electromagnetic 256 | . . . 256 . . . Impact . | . . . . . . . Slashing 824 | . . . . . . 824 Piercing 1068 | . . . . . . 1068 Highest Corruption 6 | . . . . . . 6 Average Corruption 4 | . . . . . . 4 Corruption Purged 6 | . . . . . . 6 Corruption Blocked . | . . . . . . . Effects 8 | . . . . . . 8 Message Errors 1 | . . . . . . 1 Matter Fused 5 | . . . . . . 5 Heat Flow Errors 1 | . . . . . . 1 Data Loss (minor) 1 | . . . . . . 1 Overload Shots . | . . . . . . . Overflow Damage 15 | . . . . . . 15 Projectiles . | . . . . . . . Explosions . | . . . . . . . Melee 15 | . . . . . . 15 Knockbacks . | . . . . . . . Impact . | . . . . . . . Kinetic . | . . . . . . . Secondary . | . . . . . . . Self-Inflicted Damage . | . . . . . . . Shots . | . . . . . . . Rammed . | . . . . . . . Targets Rammed . | . . . . . . . Kicked . | . . . . . . . Crushed . | . . . . . . . Highest Temperature 511 | . 511 82 11 . . 105 Average Temperature 123 | . 154 26 11 . . 19 Received Heat Transfer 1425 | . 447 231 198 . 27 522 Effects 10 | . 10 . . . . . Shutdowns 1 | . 1 . . . . . Energy Bleed 3 | . 3 . . . . . Interference 3 | . 3 . . . . . Matter Decay 1 | . 1 . . . . . Damage (minor) 2 | . 2 . . . . . Siege Activations . | . . . . . . . Robots Corrupted . | . . . . . . . Combat Hostiles . | . . . . . . . Parts Fried . | . . . . . . . Impact Corruptions . | . . . . . . . Robots Melted 2 | . . . 2 . . . Combat Hostiles 2 | . . . 2 . . . Parts Melted 10 | . 3 4 3 . . . Heat Transferred 5638 | . 2072 1836 1456 . 199 75 Parts Sabotaged . | . . . . . . . Parts Stolen . | . . . . . . . Parts Stripped . | . . . . . . . Power Chain Reactions 1 | . . . 1 . . . Alert | -11 -10 -9 -8 -7 -7 -6 ------- Run | Yrd Mat Mat Mat Fac DSF Fac Peak Influence 330 | . 251 309 265 89 80 330 Initial 130 | . . 65 130 89 65 33 Average 115 | . 86 168 149 89 59 102 Maximum Alert Level 1 | . 1 1 1 . . 1 Low Security (%) 86 | . 93 59 95 100 100 85 Level 1 13 | . 6 40 4 . . 14 Level 2 . | . . . . . . . Level 3 . | . . . . . . . Level 4 . | . . . . . . . Level 5 . | . . . . . . . High Security . | . . . . . . . Max Security . | . . . . . . . Squads Dispatched 11 | . 3 . 2 . 1 5 Investigation 2 | . . . . . . 2 Extermination 1 | . . . . . . 1 Reinforcement 8 | . 3 . 2 . 1 2 Assault . | . . . . . . . Garrison . | . . . . . . . Intercept . | . . . . . . . Searches Triggered . | . . . . . . . Construction Impeded . | . . . . . . . Haulers Reinforced . | . . . . . . . Active Scanning Responses . | . . . . . . . Cargo Convoy Interrupts . | . . . . . . . Stealth | -11 -10 -9 -8 -7 -7 -6 --------- Run | Yrd Mat Mat Mat Fac DSF Fac Distress Signals 6 | . . 3 2 . . 1 Communications Jammed . | . . . . . . . Distress Signals . | . . . . . . . Times Spotted 99 | . 28 12 18 . 8 33 Peak Tracking Total 8 | . 3 5 4 . 4 8 Tactical Retreats 15 | . . 1 3 . 2 9 Traps | -11 -10 -9 -8 -7 -7 -6 ------- Run | Yrd Mat Mat Mat Fac DSF Fac Traps Triggered 5 | . . . 2 . 1 2 Indirectly . | . . . . . . . Trap Hack Attempts . | . . . . . . . Triggered . | . . . . . . . Disarmed . | . . . . . . . Reprogrammed . | . . . . . . . Reused . | . . . . . . . Traps Extracted . | . . . . . . . Installed . | . . . . . . . Triggered . | . . . . . . . Machines | -11 -10 -9 -8 -7 -7 -6 ---------- Run | Yrd Mat Mat Mat Fac DSF Fac Machines Disabled 1 | . . . 1 . . . Max in Single Turn 1 | . . . 1 . . . Machines Repaired . | . . . . . . . Machines Dismantled . | . . . . . . . Machines Sabotaged . | . . . . . . . Overloaded Fab Kills . | . . . . . . . Hacking | -11 -10 -9 -8 -7 -7 -6 --------- Run | Yrd Mat Mat Mat Fac DSF Fac Machines Accessed 8 | . . 1 2 1 . 4 Terminals 5 | . . 1 2 1 . 1 Fabricators 2 | . . . . . . 2 Repair Stations . | . . . . . . . Recycling Units . | . . . . . . . Scanalyzers 1 | . . . . . . 1 Garrison Access . | . . . . . . . Total Hacks 16 | . . 2 4 1 . 9 Successful 9 | . . . 1 1 . 7 Failed 7 | . . 2 3 . . 2 Catastrophic 1 | . . . 1 . . . Database Lockouts . | . . . . . . . Manual 8 | . . 2 4 . . 2 Terminals 9 | . . 2 4 1 . 2 Fabricators 3 | . . . . . . 3 Repair Stations . | . . . . . . . Recycling Units . | . . . . . . . Scanalyzers 4 | . . . . . . 4 Garrison Access . | . . . . . . . Terminal Hacks 1 | . . . . 1 . . Open DSF 1 | . . . . 1 . . Fabricator Hacks 3 | . . . . . . 3 Network Status 1 | . . . . . . 1 Load Schematic 1 | . . . . . . 1 Build 1 | . . . . . . 1 Repair Station Hacks . | . . . . . . . Recycling Unit Hacks . | . . . . . . . Scanalyzer 4 | . . . . . . 4 Insert Component 2 | . . . . . . 2 Analyze 2 | . . . . . . 2 Garrison Access Hacks . | . . . . . . . Unauthorized Hacks 1 | . . . 1 . . . Terminals 1 | . . . 1 . . . Botnet 1 | . . . 1 . . . Fabricators . | . . . . . . . Repair Stations . | . . . . . . . Recycling Units . | . . . . . . . Scanalyzers . | . . . . . . . Garrison Access . | . . . . . . . Data Cores Recovered . | . . . . . . . Used . | . . . . . . . Hacking Detections 7 | . . 1 2 . . 4 Full Trace Events 2 | . . . . . . 2 Feedback Events . | . . . . . . . Feedback Blocked . | . . . . . . . Robot Schematics Acquired . | . . . . . . . Robots Built . | . . . . . . . Authchips . | . . . . . . . Time . | . . . . . . . Total Robot Build Rating . | . . . . . . . Part Schematics Acquired 2 | . . . . . . 2 Parts Built . | . . . . . . . Authchips . | . . . . . . . Time 84 | . . . . . . 84 Total Part Build Rating . | . . . . . . . Parts Repaired . | . . . . . . . Time . | . . . . . . . Parts Recycled . | . . . . . . . Recycled Matter . | . . . . . . . Retrieved Matter . | . . . . . . . Retrieved Components . | . . . . . . . Parts Scanalyzed 2 | . . . . . . 2 Part Schematics Acquired 2 | . . . . . . 2 Parts Damaged . | . . . . . . . Bothacking | -11 -10 -9 -8 -7 -7 -6 ------------ Run | Yrd Mat Mat Mat Fac DSF Fac Used RIF Installer . | . . . . . . . Robots Hacked . | . . . . . . . Non-combat . | . . . . . . . Combat . | . . . . . . . Robot Hacks Applied . | . . . . . . . Relay Couplers Released . | . . . . . . . Fabnet Peak Effective % . | . . . . . . . Robots Rewired 1 | . . . 1 . . . Allies Hacked . | . . . . . . . Hacks Repelled . | . . . . . . . Allies | -11 -10 -9 -8 -7 -7 -6 -------- Run | Yrd Mat Mat Mat Fac DSF Fac Total Allies 1 | . . . 1 . . . Largest Group 1 | . . . 1 . . . Highest-Rated Group 16 | . . . 16 . . . Highest-Rated Ally 16 | . . . 16 . . . Total Orders . | . . . . . . . Ally Attacks 3 | . . . 3 . . . Total Damage 33 | . . . 33 . . . Kills . | . . . . . . . Allies Corrupted . | . . . . . . . Allies Melted . | . . . . . . . Intel | -11 -10 -9 -8 -7 -7 -6 ------- Run | Yrd Mat Mat Mat Fac DSF Fac Robot Analysis Total . | . . . . . . . Derelict Logs Recovered . | . . . . . . . Drone Launches . | . . . . . . . Drone Recoveries . | . . . . . . . Exploration | -11 -10 -9 -8 -7 -7 -6 ------------- Run | Yrd Mat Mat Mat Fac DSF Fac Turns Passed 2539 | . 636 360 537 2 117 887 Spaces Moved 2071 | 1 353 186 338 3 113 1077 Core 1 | . . . . . 1 . Treads . | . . . . . . . Legs 176 | 1 175 . . . . . Wheels 723 | . 178 186 338 3 18 . Hover 156 | . . . . . . 156 Flight 1015 | . . . . . 94 921 Fastest Speed 25 | 120 80 100 85 86 27 25 Average Speed 67 | 120 107 100 90 86 45 43 Slowest Speed 190 | 120 190 100 100 86 150 120 Overloaded Moves . | . . . . . . . Propulsion Burnouts . | . . . . . . . Robots Hopped 2 | . . . . . 2 . Cave-ins Triggered . | . . . . . . . Exploration Rate (%) 31 | 2 56 22 34 1 85 20 Regions Visited 6 Branch Regions . Pre-discovered Areas . | . . . . . . . Known Exits Taken 3 | . . 1 1 1 . . Unknown Exits Taken 2 | 1 1 . . . . . Scrap Searched . | . . . . . . . Spaces Dug . | . . . . . . . Terrain Destroyed 1 | . . . 1 . . . Melee . | . . . . . . . Projectile . | . . . . . . . AOE 1 | . . . 1 . . . Terrain Rammed . | . . . . . . . Walls Destroyed . | . . . . . . . Machines Disabled . | . . . . . . . Actions | -11 -10 -9 -8 -7 -7 -6 --------- Run | Yrd Mat Mat Mat Fac DSF Fac Total 2752 | . 482 262 478 2 159 1369 Wait 211 | . 6 . 42 . 19 144 Move 2062 | . 352 185 337 2 109 1077 Hop 1 | . . . . . 1 . Pick Up 31 | . 11 5 6 . 1 8 Fast Attach 59 | . 3 2 18 . 10 26 Attach 28 | . 4 5 2 . 2 15 Detach 12 | . 1 1 . . 1 9 Swap 19 | . 6 3 7 . . 3 Drop 49 | . 10 2 13 . 6 18 Fire 206 | . 89 59 43 . 10 5 Melee 64 | . . . . . . 64 Ram . | . . . . . . . Kick . | . . . . . . . Crush . | . . . . . . . Escape Stasis . | . . . . . . . Rewire 10 | . . . 10 . . . Trap . | . . . . . . . Miscellaneous . | . . . . . . . Route ------- -11/Scrapyard -10/Materials (discovered 2 exits: *Mat / [*Min]) -9/Materials -8/Materials -7/Factory -7/DSF -6/Factory (discovered 1 exit: [*Ext]) History --------- Turn | Location | Event 1 | -11/Scrapyard | Discovered new exit (range 0) 1 | -11/Scrapyard | Entered Materials 86 | -10/Materials | Discovered new exit (range 16) 153 | -10/Materials | Discovered new exit (range 11) 305 | -10/Materials | Build established: Mutant 388 | -10/Materials | Core integrity fell below 50% 390 | -10/Materials | Lost 3 parts (1n2w) 637 | -10/Materials | Entered another Materials area 637 | -9/Materials | Evolved 2 slots: Propulsion x2 899 | -9/Materials | Discovered new exit (range 11) 996 | -9/Materials | Identified exit to Materials 997 | -9/Materials | Entered another Materials area 997 | -8/Materials | Evolved 2 slots: Utility x2 1191 | -8/Materials | Lost 4 parts (2n2w) 1282 | -8/Materials | Build established: Scavenger-Mutant 1339 | -8/Materials | Lost 3 parts (2n1u) 1512 | -8/Materials | Discovered new exit (range 15) 1533 | -8/Materials | Identified exit to Factory 1534 | -8/Materials | Entered Factory 1534 | -7/Factory | Evolved 2 slots: Propulsion x1, Utility x1 1536 | -7/Factory | Identified exit to DSF 1536 | -7/Factory | Entered DSF 1559 | -7/DSF | Additional patrols routed to DSF 1628 | -7/DSF | Discovered new exit (range 15) 1638 | -7/DSF | Identified exit to Factory 1642 | -7/DSF | Lost 7 parts (1p5n1w) 1653 | -7/DSF | Entered Factory 1653 | -6/Factory | Evolved 2 slots: Power x1, Utility x1 1866 | -6/Factory | Lost 4 parts (3n1w) 2294 | -6/Factory | Core integrity fell below 50% 2513 | -6/Factory | Discovered new exit (range 17) 2522 | -6/Factory | Core integrity fell below 20% 2540 | -6/Factory | Destroyed by H-66 Slayer with Gauss Rifle Last Messages --------------- 02528_ Penetrated by Slug. 02528_ Lgt. Angular Momentum Engine destroyed. 02529_ H-66 Slayer suffers critical hit (Impale). 02529_ H-66 Slayer destroyed. 02529_ VTOL Module destroyed. 02529_ K-01 Serf collects debris. 02530_ U-05 Engineer lays Concrete. 02532_ Penetrated by Slug. 02532_ U-05 Engineer lays Concrete. 02533_ System corrupted: Matter fused (-9). 02533_ Acquired 17 matter. 02533_ K-01 Serf collects debris. 02534_ Acquired 10 matter. 02536_ U-05 Engineer lays Concrete. 02537_ Acquired Lgt. Fission Core. 02537_ Penetrated by Slug. 02538_ K-01 Serf collects debris. 02538_ U-05 Engineer lays Concrete. 02540_ Penetrated by Slug. Map ----- +----------------------------------------------------+ | "" ######### ?????????????????????? | | """ # ????????????????????? | | """ + ????????????????????? | | """ # ???????????????????? | | ## ???????????????????? | | """ """ ## ???????????????????? | | """ """ ## """ """ """?? #?????????????????? | | """ """ ## """ """ ""?? #?????????????????? | | ?? ## """ """ """ #?????????????????? | | ???#######+## """ """ """ #?????????????????? | | ?????????# #?????????????????? | | ?????????# """ """ """ #?????????????????? | | ?????????# """ """ """ #?????????????????? | | ?????????# """ """ """ #?????????????????? | | ?????????# "" #?????????????????? | | ?????????#### h #?????????????????? | | ????????????# "u % " #?????????????????? | | ????????????# "" F" #?????????????????? | | "T########### """ #?????????????????? | | " """u " #?????????????????? | | #?????????????????? | | #?????????????????? | | ############ ########?????????????? | | ????????????# # [%k #?????????????? | | ????????????#= """ # !! #?????????????? | | ????????????#^ """ # @ #?????????????? | | ????????????# """ # #?????????????? | | ############# # #?????????????? | | """ # %= #?????????????? | | """ # k ! #?????????????? | | """ + #?????????????? | | # t #?????????????? | | # #?????????????? | | ##################+##+# #?????????????? | | ????????????# # #?????????????? | | ????????????# ############+#?????????????? | | ????????????# #??????????? #?????????????? | | ????????????# #??????????? ?????????????? | | ????????????# #??????????? ????????????? | | ????????????# #???????????? ???????????? | | ????????????# #????????????### ??????????? | | ????????????# #????????????????#?????????? | | ????????????###########??????????????????????????? | | ?????????????????????????????????????????????????? | | ?????????????????????????????????????????????????? | | ?????????????????????????????????????????????????? | | ?????????????????????????????????????????????????? | | ?????????????????????????????????????????????????? | | ?????????????????????????????????????????????????? | | ?????????????????????????????????????????????????? | +----------------------------------------------------+ Best States ------------- Heat Dissipation 76 Energy Generation 36 Energy Capacity 280 Matter Stores 300 Matter Capacity 300 Sight Range 18 Robot Scan Range 15 Terrain Scan Density 10 Power Amplification 20 Armor Coverage 225 Evasion (%) 64 Melee Accuracy 14 Offensive Hacking 10 Defensive Hacking 12 Item Schematics ----------------- Xenon Bombardment Thruster | -6/Factory | Scanalyzed Lgt. Fission Core | -6/Factory | Scanalyzed Robot Schematics ------------------ None Fabricated ------------ Nothing Alien Tech Used ----------------- None Achievements -------------- None Challenges ------------ None Game ------ Seed MobileSubdwellerThruster Manual? 0 Play Time 00:30:46 Cumulative 187.8 hours Start 2024.05.23 @ 13:52:50 End 2024.05.23 @ 14:22:45 Sessions 1 Manual Loads 0 Difficulty Rogue Special Mode None Game No. 347 Rogue 347 Adventurer 0 Explorer 0 Win Type - Total 0 Types 0/0/0/0/0/0/0/0/0 Lore% 43 Gallery% 55 Achievement% 39 Wizard Run 0 Options --------- Layout 1 ASCII 0 Keyboard 0 Movement Mouse Keybinds 0 Fullscreen 1 Font 24/Smallcaps Map View 50x40 Zoom Use 0% Tactical HUD 1 Map Filters NONE Filters NONE Steam 1 RUN: 9e66468e-7574-4dd0-a842-e46158b2ace4